[Event "*** SCC Grand Prix: Titled Tuesday Blitz"]
[Site "Chess.com"]
[Date "2020.06.02"]
[Round "8"]
[White "ArnieChipmunk"]
[Black "mirochka"]
[Result "1-0"]
[WhiteElo "2278"]
[BlackElo "2166"]
[TimeControl "180+1"]
[EndTime "11:36:30 PDT"]
[Termination "ArnieChipmunk won on time"]

1. e4 {[%clk 0:03:00.5]} 1... c5 {[%clk 0:02:59.4]} 2. Nf3 {[%clk 0:03:00.5]}
2... Nc6 {[%clk 0:02:58.4]} 3. d4 {[%clk 0:03:00.4]} 3... cxd4 {[%clk
0:02:59.3]} 4. Nxd4 {[%clk 0:03:00.4]} 4... e5 {[%clk 0:02:59.8]} 5. Nb5 {[%clk
0:02:57.2]} 5... d6 {[%clk 0:02:59.9]} 6. N1c3 {[%clk 0:02:56.7]} 6... a6 {[%clk
0:02:57.8]} 7. Na3 {[%clk 0:02:55.6]} 7... b5 {[%clk 0:02:57.4]} 8. Nd5 {[%clk
0:02:55.3]} 8... Nge7 {[%clk 0:02:57.9]} 9. Bg5 {[%clk 0:02:54]} 9... f6 {[%clk
0:02:56.3]} 10. Qh5+ {[%clk 0:01:50.6]} 10... g6 {[%clk 0:02:51.9]} 11. Nxf6+
{[%clk 0:01:50]} 11... Kf7 {[%clk 0:02:50.8]} 12. Qf3 {[%clk 0:01:16.2]} 12...
Nd4 {[%clk 0:02:49.6]} 13. Qg3 {[%clk 0:01:13.6]} 13... h6 {[%clk 0:02:32.1]}
14. Be3 {[%clk 0:01:04.5]} 14... Kxf6 {[%clk 0:02:28.3]} 15. f4 {[%clk
0:01:02.3]} 15... Nec6 {[%clk 0:01:43.1]} 16. c3 {[%clk 0:00:57.5]} 16... Ne6
{[%clk 0:01:33.7]} 17. f5 {[%clk 0:00:56.9]} 17... gxf5 {[%clk 0:00:28.6]} 18.
exf5 {[%clk 0:00:56.1]} 18... Ng5 {[%clk 0:00:27.9]} 19. O-O-O {[%clk
0:00:51.2]} 19... Bxf5 {[%clk 0:00:23.7]} 20. Bd3 {[%clk 0:00:43.3]} 20... Bxd3
{[%clk 0:00:20.6]} 21. Rxd3 {[%clk 0:00:43.1]} 21... Qd7 {[%clk 0:00:17]} 22.
Rf1+ {[%clk 0:00:39]} 22... Ke7 {[%clk 0:00:16.7]} 23. Bxg5+ {[%clk 0:00:37.6]}
23... hxg5 {[%clk 0:00:16.9]} 24. Qxg5+ {[%clk 0:00:36.1]} 24... Ke8 {[%clk
0:00:15.2]} 25. Qg6+ {[%clk 0:00:35.1]} 25... Kd8 {[%clk 0:00:13.1]} 26. Qf6+
{[%clk 0:00:25.4]} 26... Kc7 {[%clk 0:00:12.8]} 27. Qxh8 {[%clk 0:00:25.1]}
27... e4 {[%clk 0:00:12.2]} 28. Rh3 {[%clk 0:00:20.1]} 28... b4 {[%clk
0:00:12.1]} 29. Nc4 {[%clk 0:00:19.8]} 29... d5 {[%clk 0:00:10.4]} 30. Rxf8
{[%clk 0:00:19.5]} 30... Rxf8 {[%clk 0:00:08.6]} 31. Qxf8 {[%clk 0:00:19.5]}
31... Ne7 {[%clk 0:00:05.4]} 32. Rh7 {[%clk 0:00:17.6]} 1-0

[Event "*** SCC Grand Prix: Titled Tuesday Blitz"]
[Site "Chess.com"]
[Date "2020.06.02"]
[Round "8"]
[White "Witik"]
[Black "LileKoridze"]
[Result "1-0"]
[WhiteElo "2539"]
[BlackElo "2304"]
[TimeControl "180+1"]
[EndTime "11:36:31 PDT"]
[Termination "Witik won on time"]

1. d4 {[%clk 0:03:00.9]} 1... Nf6 {[%clk 0:02:59.6]} 2. Bf4 {[%clk 0:03:00.1]}
2... d5 {[%clk 0:02:58.7]} 3. e3 {[%clk 0:03:00.3]} 3... Bg4 {[%clk 0:02:57.7]}
4. f3 {[%clk 0:02:58.5]} 4... Bh5 {[%clk 0:02:57.8]} 5. c4 {[%clk 0:02:58]} 5...
c6 {[%clk 0:02:56.3]} 6. Nc3 {[%clk 0:02:58.1]} 6... e6 {[%clk 0:02:56.1]} 7.
Qb3 {[%clk 0:02:57.7]} 7... Qb6 {[%clk 0:02:49.6]} 8. c5 {[%clk 0:02:55.9]} 8...
Qxb3 {[%clk 0:02:40.8]} 9. axb3 {[%clk 0:02:56.8]} 9... Nbd7 {[%clk 0:02:37.2]}
10. b4 {[%clk 0:02:55.7]} 10... b6 {[%clk 0:02:33.5]} 11. Ba6 {[%clk 0:02:53]}
11... bxc5 {[%clk 0:02:23.1]} 12. Bb7 {[%clk 0:02:14.7]} 12... Rd8 {[%clk
0:02:22.1]} 13. bxc5 {[%clk 0:02:14]} 13... e5 {[%clk 0:02:03.4]} 14. dxe5
{[%clk 0:02:13.3]} 14... Ng8 {[%clk 0:02:03.4]} 15. Bxc6 {[%clk 0:02:10.7]}
15... Bxc5 {[%clk 0:02:01.7]} 16. Nxd5 {[%clk 0:01:59]} 16... Ne7 {[%clk
0:01:53.5]} 17. Nxe7 {[%clk 0:01:45.3]} 17... Kxe7 {[%clk 0:01:52.6]} 18. Ne2
{[%clk 0:01:45]} 18... h6 {[%clk 0:01:47.9]} 19. Nd4 {[%clk 0:01:38.7]} 19...
Nb8 {[%clk 0:01:15.7]} 20. Be4 {[%clk 0:01:28.6]} 20... g5 {[%clk 0:01:04.4]}
21. Bg3 {[%clk 0:01:23.4]} 21... Bxd4 {[%clk 0:00:56.3]} 22. exd4 {[%clk
0:01:23.5]} 22... Rxd4 {[%clk 0:00:56.6]} 23. Rxa7+ {[%clk 0:01:22.4]} 23... Ke6
{[%clk 0:00:55.7]} 24. O-O {[%clk 0:01:14.1]} 24... Nd7 {[%clk 0:00:49.6]} 25.
Rfa1 {[%clk 0:00:42.9]} 25... Nc5 {[%clk 0:00:22.4]} 26. Bc6 {[%clk 0:00:31.9]}
26... Rhd8 {[%clk 0:00:16]} 27. h3 {[%clk 0:00:24.2]} 27... Rd1+ {[%clk
0:00:08.8]} 28. Rxd1 {[%clk 0:00:23.9]} 28... Rxd1+ {[%clk 0:00:08.4]} 29. Kh2
{[%clk 0:00:24.8]} 29... Rd2 {[%clk 0:00:04.7]} 30. b4 {[%clk 0:00:20.9]} 30...
Nd3 {[%clk 0:00:04.7]} 31. Rd7 {[%clk 0:00:20.7]} 31... Rd1 {[%clk 0:00:02.5]}
32. b5 {[%clk 0:00:19.3]} 32... Nb2 {[%clk 0:00:01.4]} 33. Rxd1 {[%clk
0:00:18.6]} 33... Nxd1 {[%clk 0:00:02.3]} 34. b6 {[%clk 0:00:19.3]} 1-0

[Event "*** SCC Grand Prix: Titled Tuesday Blitz"]
[Site "Chess.com"]
[Date "2020.06.02"]
[Round "8"]
[White "PavelShkapenko"]
[Black "Loiacono_Antonio"]
[Result "1-0"]
[WhiteElo "2626"]
[BlackElo "2409"]
[TimeControl "180+1"]
[EndTime "11:36:32 PDT"]
[Termination "PavelShkapenko won by resignation"]

1. e4 {[%clk 0:03:00]} 1... e5 {[%clk 0:02:59.3]} 2. Nf3 {[%clk 0:02:59.7]} 2...
Nc6 {[%clk 0:02:59.6]} 3. g3 {[%clk 0:03:00]} 3... Nf6 {[%clk 0:02:58.8]} 4. d3
{[%clk 0:02:59.4]} 4... d5 {[%clk 0:02:56.3]} 5. exd5 {[%clk 0:02:59.4]} 5...
Qxd5 {[%clk 0:02:56.4]} 6. Bg2 {[%clk 0:02:59.4]} 6... Bg4 {[%clk 0:02:56.3]} 7.
O-O {[%clk 0:02:57.1]} 7... Qd7 {[%clk 0:02:54.3]} 8. Re1 {[%clk 0:02:55.1]}
8... Bd6 {[%clk 0:02:45.3]} 9. Bg5 {[%clk 0:02:53.4]} 9... Qf5 {[%clk
0:02:41.5]} 10. Nbd2 {[%clk 0:02:42]} 10... O-O {[%clk 0:02:37.9]} 11. Bxf6
{[%clk 0:02:36]} 11... Qxf6 {[%clk 0:02:36]} 12. h3 {[%clk 0:02:36.3]} 12... Bh5
{[%clk 0:02:33.1]} 13. Ne4 {[%clk 0:02:31.2]} 13... Qe7 {[%clk 0:02:28.7]} 14.
Qd2 {[%clk 0:02:25.5]} 14... Bb4 {[%clk 0:02:24.9]} 15. c3 {[%clk 0:02:25]}
15... Ba5 {[%clk 0:02:25]} 16. b4 {[%clk 0:01:35.6]} 16... Bb6 {[%clk
0:02:22.2]} 17. a4 {[%clk 0:01:32.7]} 17... a5 {[%clk 0:02:14.4]} 18. b5 {[%clk
0:01:32.5]} 18... Nd8 {[%clk 0:02:14.3]} 19. d4 {[%clk 0:01:18.8]} 19... Bxf3
{[%clk 0:02:12.3]} 20. Bxf3 {[%clk 0:01:17.7]} 20... exd4 {[%clk 0:02:11]} 21.
cxd4 {[%clk 0:01:14.8]} 21... Qd7 {[%clk 0:02:10.9]} 22. Rad1 {[%clk 0:01:09.3]}
22... Qxh3 {[%clk 0:02:07.8]} 23. Nc5 {[%clk 0:01:07]} 23... Bxc5 {[%clk
0:01:52.3]} 24. dxc5 {[%clk 0:01:07]} 24... Qf5 {[%clk 0:01:52.1]} 25. Qe3
{[%clk 0:01:01.8]} 25... Ne6 {[%clk 0:01:48.6]} 26. Bxb7 {[%clk 0:00:54.4]}
26... Rad8 {[%clk 0:01:47.1]} 27. Rxd8 {[%clk 0:00:43.6]} 27... Rxd8 {[%clk
0:01:45.3]} 28. Qe5 {[%clk 0:00:41.9]} 28... Qxe5 {[%clk 0:01:39.3]} 29. Rxe5
{[%clk 0:00:41]} 29... Rd1+ {[%clk 0:01:37.1]} 30. Kg2 {[%clk 0:00:40.3]} 30...
Rc1 {[%clk 0:01:37.7]} 31. b6 {[%clk 0:00:29]} 31... cxb6 {[%clk 0:01:24.9]} 32.
cxb6 {[%clk 0:00:27.2]} 32... Rb1 {[%clk 0:01:03.3]} 33. Rb5 {[%clk 0:00:27.1]}
33... Rxb5 {[%clk 0:00:58.2]} 34. axb5 {[%clk 0:00:26.9]} 34... Nc5 {[%clk
0:00:58.8]} 35. Bd5 {[%clk 0:00:26.8]} 35... Nd7 {[%clk 0:00:57]} 36. b7 {[%clk
0:00:26.8]} 36... Kf8 {[%clk 0:00:55.3]} 37. Kf3 {[%clk 0:00:26.8]} 37... Ke7
{[%clk 0:00:55.1]} 38. Ke3 {[%clk 0:00:25.8]} 38... Kd6 {[%clk 0:00:55.1]} 39.
Bxf7 {[%clk 0:00:25.3]} 39... Kc5 {[%clk 0:00:52.8]} 40. Kd3 {[%clk 0:00:19.3]}
40... Kxb5 {[%clk 0:00:47.3]} 41. Be8 {[%clk 0:00:18]} 41... Kb6 {[%clk
0:00:46.9]} 42. Bxd7 {[%clk 0:00:17.5]} 42... Kxb7 {[%clk 0:00:47.8]} 43. Kc4
{[%clk 0:00:16.1]} 43... Kc7 {[%clk 0:00:47.6]} 44. Bf5 {[%clk 0:00:15.3]} 44...
h6 {[%clk 0:00:47.3]} 45. Bc2 {[%clk 0:00:15]} 45... Kd6 {[%clk 0:00:48.2]} 46.
Kd4 {[%clk 0:00:14.6]} 46... Ke6 {[%clk 0:00:47.8]} 1-0

[Event "*** SCC Grand Prix: Titled Tuesday Blitz"]
[Site "Chess.com"]
[Date "2020.06.02"]
[Round "8"]
[White "aNaartjieZA"]
[Black "AlexTriapishko"]
[Result "1-0"]
[WhiteElo "2590"]
[BlackElo "2695"]
[TimeControl "180+1"]
[EndTime "11:36:33 PDT"]
[Termination "aNaartjieZA won on time"]

1. e4 {[%clk 0:03:00.9]} 1... e5 {[%clk 0:02:58.4]} 2. Nf3 {[%clk 0:03:01]} 2...
Nc6 {[%clk 0:02:58.9]} 3. Bc4 {[%clk 0:03:01.1]} 3... Nf6 {[%clk 0:02:55.6]} 4.
d3 {[%clk 0:03:01.2]} 4... h6 {[%clk 0:02:54.5]} 5. O-O {[%clk 0:03:00.7]} 5...
d6 {[%clk 0:02:55.1]} 6. c3 {[%clk 0:02:59.2]} 6... g5 {[%clk 0:02:55.5]} 7. Ne1
{[%clk 0:02:57.6]} 7... Bg7 {[%clk 0:02:55.8]} 8. Nc2 {[%clk 0:02:56.1]} 8...
O-O {[%clk 0:02:55]} 9. Ne3 {[%clk 0:02:56.2]} 9... Ne7 {[%clk 0:02:49.2]} 10.
Bb3 {[%clk 0:02:53.4]} 10... c6 {[%clk 0:02:47.6]} 11. Nd2 {[%clk 0:02:51.3]}
11... d5 {[%clk 0:02:46.9]} 12. exd5 {[%clk 0:02:48.7]} 12... cxd5 {[%clk
0:02:47.8]} 13. d4 {[%clk 0:02:48.9]} 13... exd4 {[%clk 0:02:34.7]} 14. cxd4
{[%clk 0:02:48.8]} 14... Be6 {[%clk 0:02:35.6]} 15. Nf3 {[%clk 0:02:39]} 15...
Ng6 {[%clk 0:02:31.5]} 16. Ne5 {[%clk 0:02:37.1]} 16... Kh7 {[%clk 0:02:21.7]}
17. Nxg6 {[%clk 0:02:35]} 17... fxg6 {[%clk 0:02:22.6]} 18. Bc2 {[%clk
0:02:34.7]} 18... Rc8 {[%clk 0:02:20.4]} 19. Bd2 {[%clk 0:02:34.2]} 19... Nh5
{[%clk 0:02:06.6]} 20. Bb4 {[%clk 0:02:08.5]} 20... Rf7 {[%clk 0:01:53.9]} 21.
Rc1 {[%clk 0:02:03.4]} 21... Nf4 {[%clk 0:01:43]} 22. g3 {[%clk 0:02:01.8]}
22... Nh3+ {[%clk 0:01:10.5]} 23. Kg2 {[%clk 0:02:01.4]} 23... Qd7 {[%clk
0:01:11.1]} 24. Bc3 {[%clk 0:01:53.1]} 24... Nf4+ {[%clk 0:00:40.1]} 25. Kg1
{[%clk 0:01:47.6]} 25... Nh3+ {[%clk 0:00:33.6]} 26. Kg2 {[%clk 0:01:45.9]}
26... g4 {[%clk 0:00:32.9]} 27. Qd3 {[%clk 0:01:39]} 27... Rf6 {[%clk 0:00:33]}
28. f4 {[%clk 0:01:30.9]} 28... gxf3+ {[%clk 0:00:17.1]} 29. Rxf3 {[%clk
0:01:30.4]} 29... Rcf8 {[%clk 0:00:17.3]} 30. Rxf6 {[%clk 0:01:30.3]} 30... Rxf6
{[%clk 0:00:18.2]} 31. Rf1 {[%clk 0:01:28.7]} 31... Qf7 {[%clk 0:00:17.5]} 32.
Rxf6 {[%clk 0:01:26]} 32... Qxf6 {[%clk 0:00:17.1]} 33. Qf1 {[%clk 0:01:21.8]}
33... Qe7 {[%clk 0:00:15.3]} 34. Qd3 {[%clk 0:01:18.6]} 34... Qf7 {[%clk
0:00:14.1]} 35. Qf1 {[%clk 0:01:17.9]} 35... Ng5 {[%clk 0:00:13.1]} 36. Qxf7
{[%clk 0:01:17.1]} 36... Nxf7 {[%clk 0:00:13.3]} 37. Bb3 {[%clk 0:01:17]} 37...
Nd6 {[%clk 0:00:12.9]} 38. Bxd5 {[%clk 0:01:16.3]} 38... Bd7 {[%clk 0:00:12.2]}
39. Nc4 {[%clk 0:01:14.5]} 39... Nb5 {[%clk 0:00:08]} 40. Bxb7 {[%clk
0:01:11.9]} 40... Nxd4 {[%clk 0:00:04.4]} 41. Kf2 {[%clk 0:01:05.5]} 41... h5
{[%clk 0:00:02.5]} 42. Bd5 {[%clk 0:01:02.7]} 42... Bb5 {[%clk 0:00:02.2]} 43.
Nd6 {[%clk 0:01:01]} 43... Bd3 {[%clk 0:00:02.7]} 44. Ne8 {[%clk 0:00:59]} 1-0

[Event "*** SCC Grand Prix: Titled Tuesday Blitz"]
[Site "Chess.com"]
[Date "2020.06.02"]
[Round "8"]
[White "lelajavakhishvili"]
[Black "dpopadic"]
[Result "1/2-1/2"]
[WhiteElo "2477"]
[BlackElo "2340"]
[TimeControl "180+1"]
[EndTime "11:36:35 PDT"]
[Termination "Game drawn by repetition"]

1. d4 {[%clk 0:03:00.9]} 1... Nf6 {[%clk 0:02:59.8]} 2. c4 {[%clk 0:02:59.9]}
2... g6 {[%clk 0:02:59.8]} 3. Nf3 {[%clk 0:02:58.3]} 3... Bg7 {[%clk 0:03:00.4]}
4. Nc3 {[%clk 0:02:57.8]} 4... d6 {[%clk 0:03:01.3]} 5. e4 {[%clk 0:02:56.9]}
5... O-O {[%clk 0:03:01.9]} 6. Be2 {[%clk 0:02:57.1]} 6... e5 {[%clk 0:03:02.2]}
7. Be3 {[%clk 0:02:56.8]} 7... Na6 {[%clk 0:03:01.2]} 8. O-O {[%clk 0:02:55.8]}
8... Ng4 {[%clk 0:03:00.8]} 9. Bg5 {[%clk 0:02:55.9]} 9... Qe8 {[%clk
0:03:00.8]} 10. dxe5 {[%clk 0:02:54.4]} 10... dxe5 {[%clk 0:02:59.9]} 11. h3
{[%clk 0:02:54.7]} 11... f6 {[%clk 0:03:00.1]} 12. Bd2 {[%clk 0:02:54.2]} 12...
Nh6 {[%clk 0:03:00]} 13. Be3 {[%clk 0:02:54.3]} 13... c6 {[%clk 0:02:59.5]} 14.
b4 {[%clk 0:02:46.2]} 14... Qe7 {[%clk 0:02:49.1]} 15. a3 {[%clk 0:02:41.2]}
15... Nf7 {[%clk 0:02:48]} 16. Qc2 {[%clk 0:02:30]} 16... Be6 {[%clk 0:02:47.7]}
17. Rfd1 {[%clk 0:02:29.1]} 17... Nc7 {[%clk 0:02:44.6]} 18. c5 {[%clk
0:02:25.8]} 18... Rfd8 {[%clk 0:02:42.5]} 19. Nd2 {[%clk 0:02:21.3]} 19... Bh6
{[%clk 0:02:36]} 20. Bxh6 {[%clk 0:02:12.8]} 20... Nxh6 {[%clk 0:02:35.9]} 21.
Nc4 {[%clk 0:02:13.4]} 21... Nf7 {[%clk 0:02:32.1]} 22. Na5 {[%clk 0:02:09]}
22... Ne8 {[%clk 0:02:27.4]} 23. Rxd8 {[%clk 0:02:00.4]} 23... Rxd8 {[%clk
0:02:26.2]} 24. Rd1 {[%clk 0:02:01.3]} 24... Rxd1+ {[%clk 0:02:25.9]} 25. Nxd1
{[%clk 0:01:58.5]} 25... Kg7 {[%clk 0:02:24.2]} 26. Ne3 {[%clk 0:01:58.3]} 26...
Bc8 {[%clk 0:02:09.1]} 27. a4 {[%clk 0:01:56.6]} 27... Nc7 {[%clk 0:02:08.3]}
28. b5 {[%clk 0:01:54]} 28... Nd8 {[%clk 0:01:59.5]} 29. b6 {[%clk 0:01:21.2]}
29... axb6 {[%clk 0:01:58.5]} 30. cxb6 {[%clk 0:01:22.1]} 30... Na8 {[%clk
0:01:53.6]} 31. Nec4 {[%clk 0:01:20]} 31... Qc5 {[%clk 0:01:46.7]} 32. Qb2
{[%clk 0:01:14.5]} 32... Be6 {[%clk 0:01:45.4]} 33. h4 {[%clk 0:01:08.4]} 33...
Nf7 {[%clk 0:01:45]} 34. Nb3 {[%clk 0:01:04.6]} 34... Qb4 {[%clk 0:01:42.3]} 35.
Qc2 {[%clk 0:01:00.2]} 35... Nxb6 {[%clk 0:01:30.2]} 36. Nxb6 {[%clk 0:00:59]}
36... Bxb3 {[%clk 0:01:26.2]} 37. Qb2 {[%clk 0:00:52.4]} 37... Qxb6 {[%clk
0:01:24.5]} 38. Bc4 {[%clk 0:00:51.4]} 38... Nd6 {[%clk 0:01:21.4]} 39. Bxb3
{[%clk 0:00:50]} 39... Nxe4 {[%clk 0:01:17.6]} 40. Qc2 {[%clk 0:00:47.2]} 40...
Nc5 {[%clk 0:01:15]} 41. Ba2 {[%clk 0:00:42.8]} 41... Qb4 {[%clk 0:01:13.6]} 42.
h5 {[%clk 0:00:40.8]} 42... Nxa4 {[%clk 0:01:01.7]} 43. Qd3 {[%clk 0:00:35.5]}
43... Qd4 {[%clk 0:00:57.8]} 44. Qb3 {[%clk 0:00:34]} 44... Nc5 {[%clk
0:00:49.7]} 45. Qf7+ {[%clk 0:00:33.5]} 45... Kh6 {[%clk 0:00:49.8]} 46. Qxf6
{[%clk 0:00:33.3]} 46... Qd1+ {[%clk 0:00:47.8]} 47. Kh2 {[%clk 0:00:33.1]}
47... Qxh5+ {[%clk 0:00:47.7]} 48. Kg1 {[%clk 0:00:34]} 48... Qd1+ {[%clk
0:00:46.7]} 49. Kh2 {[%clk 0:00:33.9]} 49... Qh5+ {[%clk 0:00:36.8]} 50. Kg1
{[%clk 0:00:33.8]} 50... Qf5 {[%clk 0:00:36.8]} 51. Qh4+ {[%clk 0:00:29.1]}
51... Qh5 {[%clk 0:00:33.9]} 52. Qf6 {[%clk 0:00:24.8]} 1/2-1/2

[Event "*** SCC Grand Prix: Titled Tuesday Blitz"]
[Site "Chess.com"]
[Date "2020.06.02"]
[Round "8"]
[White "JesseKraai"]
[Black "Dmitry_Konenkin"]
[Result "1-0"]
[WhiteElo "2441"]
[BlackElo "2289"]
[TimeControl "180+1"]
[EndTime "11:36:35 PDT"]
[Termination "JesseKraai won on time"]

1. d4 {[%clk 0:03:00.9]} 1... d6 {[%clk 0:02:59.8]} 2. e4 {[%clk 0:03:00.1]}
2... Nf6 {[%clk 0:02:59.5]} 3. Nc3 {[%clk 0:03:00.3]} 3... e5 {[%clk 0:02:59.9]}
4. dxe5 {[%clk 0:02:53.7]} 4... dxe5 {[%clk 0:03:00.8]} 5. Qxd8+ {[%clk
0:02:53.5]} 5... Kxd8 {[%clk 0:03:01.7]} 6. Nf3 {[%clk 0:02:51.8]} 6... Bd6
{[%clk 0:02:55.8]} 7. Bg5 {[%clk 0:02:44.5]} 7... Be6 {[%clk 0:02:55.5]} 8.
O-O-O {[%clk 0:02:43.6]} 8... Nd7 {[%clk 0:02:55.8]} 9. Nd5 {[%clk 0:02:39.1]}
9... Bxd5 {[%clk 0:02:24.9]} 10. exd5 {[%clk 0:02:21.3]} 10... h6 {[%clk
0:02:24.7]} 11. Bh4 {[%clk 0:02:09.9]} 11... g5 {[%clk 0:02:11.8]} 12. Bg3
{[%clk 0:02:09.6]} 12... Nh5 {[%clk 0:02:12.1]} 13. Bd3 {[%clk 0:02:05.3]} 13...
Ke7 {[%clk 0:02:02.7]} 14. Rhe1 {[%clk 0:02:02.4]} 14... f6 {[%clk 0:02:02.5]}
15. Nd4 {[%clk 0:01:54.3]} 15... Nc5 {[%clk 0:01:21.5]} 16. Bc4 {[%clk
0:01:39.9]} 16... Kf7 {[%clk 0:01:09.8]} 17. Nf5 {[%clk 0:01:27.3]} 17... Ng7
{[%clk 0:00:58.6]} 18. Nxd6+ {[%clk 0:01:26]} 18... cxd6 {[%clk 0:00:59.5]} 19.
f3 {[%clk 0:01:26]} 19... Rhc8 {[%clk 0:00:54]} 20. Bf2 {[%clk 0:01:24.5]} 20...
a6 {[%clk 0:00:52.8]} 21. Bf1 {[%clk 0:01:21.1]} 21... b5 {[%clk 0:00:52.4]} 22.
Kb1 {[%clk 0:01:17.3]} 22... Nf5 {[%clk 0:00:40.3]} 23. a3 {[%clk 0:01:14.7]}
23... Ne7 {[%clk 0:00:39.8]} 24. c3 {[%clk 0:01:11.3]} 24... Rab8 {[%clk
0:00:35.7]} 25. Ka2 {[%clk 0:01:09.3]} 25... a5 {[%clk 0:00:35.8]} 26. h4 {[%clk
0:00:56]} 26... b4 {[%clk 0:00:34.5]} 27. cxb4 {[%clk 0:00:55.8]} 27... axb4
{[%clk 0:00:34.6]} 28. Rc1 {[%clk 0:00:54.9]} 28... bxa3 {[%clk 0:00:12.8]} 29.
bxa3 {[%clk 0:00:54.4]} 29... Ra8 {[%clk 0:00:08.4]} 30. Bxc5 {[%clk 0:00:48.4]}
30... dxc5 {[%clk 0:00:08]} 31. Red1 {[%clk 0:00:39.4]} 31... Nf5 {[%clk
0:00:04.8]} 32. d6 {[%clk 0:00:34.9]} 32... Nd4 {[%clk 0:00:04.2]} 33. Bc4+
{[%clk 0:00:31.1]} 33... Ke8 {[%clk 0:00:03.7]} 34. Rb1 {[%clk 0:00:29.3]} 34...
Kd7 {[%clk 0:00:03.6]} 35. Rb6 {[%clk 0:00:28.5]} 35... Rc6 {[%clk 0:00:02.6]}
36. Rb7+ {[%clk 0:00:16.3]} 36... Kxd6 {[%clk 0:00:02.7]} 37. Rf7 {[%clk
0:00:16.2]} 1-0

[Event "*** SCC Grand Prix: Titled Tuesday Blitz"]
[Site "Chess.com"]
[Date "2020.06.02"]
[Round "8"]
[White "RobertoJBM"]
[Black "Koalaskakistis"]
[Result "1-0"]
[WhiteElo "2637"]
[BlackElo "2422"]
[TimeControl "180+1"]
[EndTime "11:36:36 PDT"]
[Termination "RobertoJBM won on time"]

1. d4 {[%clk 0:03:00.9]} 1... f5 {[%clk 0:03:00.4]} 2. g3 {[%clk 0:03:00.3]}
2... Nf6 {[%clk 0:03:00.4]} 3. Bg2 {[%clk 0:03:00.9]} 3... d6 {[%clk 0:03:00.8]}
4. Nf3 {[%clk 0:02:57.6]} 4... e6 {[%clk 0:03:00.9]} 5. O-O {[%clk 0:02:56.8]}
5... Be7 {[%clk 0:03:01.8]} 6. c4 {[%clk 0:02:57]} 6... O-O {[%clk 0:03:02.3]}
7. Nc3 {[%clk 0:02:57.9]} 7... Ne4 {[%clk 0:03:02.8]} 8. Nxe4 {[%clk 0:02:55.6]}
8... fxe4 {[%clk 0:03:03.7]} 9. Nd2 {[%clk 0:02:54.5]} 9... d5 {[%clk
0:03:04.2]} 10. f3 {[%clk 0:02:46]} 10... e3 {[%clk 0:03:03.4]} 11. Nb1 {[%clk
0:02:45.6]} 11... c5 {[%clk 0:03:02.6]} 12. cxd5 {[%clk 0:02:37.8]} 12... cxd4
{[%clk 0:03:01.4]} 13. Qxd4 {[%clk 0:02:34]} 13... Nc6 {[%clk 0:03:01.9]} 14.
Qxe3 {[%clk 0:02:30.9]} 14... exd5 {[%clk 0:03:02.8]} 15. Qd2 {[%clk 0:02:22.8]}
15... d4 {[%clk 0:02:46.9]} 16. e4 {[%clk 0:02:11.3]} 16... Be6 {[%clk
0:02:28.1]} 17. f4 {[%clk 0:02:04.4]} 17... Bc4 {[%clk 0:02:17.7]} 18. Rd1
{[%clk 0:01:58.7]} 18... Bb4 {[%clk 0:02:15]} 19. Qf2 {[%clk 0:01:58.2]} 19...
Bc5 {[%clk 0:01:42.9]} 20. Nd2 {[%clk 0:01:51.8]} 20... Be2 {[%clk 0:01:37.7]}
21. Re1 {[%clk 0:01:52]} 21... Qb6 {[%clk 0:01:34.2]} 22. Nb3 {[%clk 0:01:48.7]}
22... Bc4 {[%clk 0:01:13.3]} 23. Nxc5 {[%clk 0:01:48.1]} 23... Qxc5 {[%clk
0:01:14.2]} 24. b3 {[%clk 0:01:43.9]} 24... Bd3 {[%clk 0:01:05.9]} 25. Bb2
{[%clk 0:01:42.8]} 25... g5 {[%clk 0:00:59.2]} 26. Red1 {[%clk 0:01:39.1]} 26...
Qb5 {[%clk 0:00:45.9]} 27. Bxd4 {[%clk 0:01:22.6]} 27... Nxd4 {[%clk 0:00:38.1]}
28. Qxd4 {[%clk 0:01:23.5]} 28... Rad8 {[%clk 0:00:38.7]} 29. Qe3 {[%clk
0:01:20.4]} 29... gxf4 {[%clk 0:00:25]} 30. gxf4 {[%clk 0:01:19.4]} 30... Bc2
{[%clk 0:00:25.2]} 31. Rxd8 {[%clk 0:01:06.8]} 31... Rxd8 {[%clk 0:00:26.1]} 32.
Bf1 {[%clk 0:01:04.3]} 32... Qb4 {[%clk 0:00:15.1]} 33. Bc4+ {[%clk 0:01:02.8]}
33... Kh8 {[%clk 0:00:13.4]} 34. Rc1 {[%clk 0:00:50.1]} 34... Rd2 {[%clk
0:00:09.1]} 35. a3 {[%clk 0:00:47.2]} 35... Qd6 {[%clk 0:00:07]} 36. Qc3+ {[%clk
0:00:33]} 36... Rd4 {[%clk 0:00:02.1]} 37. Rxc2 {[%clk 0:00:30.8]} 37... Qg6+
{[%clk 0:00:02.4]} 38. Rg2 {[%clk 0:00:20.4]} 1-0